bitfinex/quotes_SOLUSD_20260220
["timestamp","ask_amount","ask_price","bid_price","bid_amount"]
[1771626414816,13.64022711,84.699,84.661,1.74400078]
[1771626415018,1.83371228,84.698,84.671,1.74400078]
[1771626415428,1.83371228,84.698,84.661,1.74400078]
[1771626415634,11.80679362,84.697,84.661,1.74400078]
[1771626415933,11.80679362,84.697,84.662,11.81167465]
[1771626415934,1.83371228,84.696,84.662,11.81167465]
[1771626416634,1.83371228,84.709,84.671,1.74810908]
[1771626417009,1.83371228,84.709,84.67,11.50049152]
[1771626417626,1.83371228,84.709,84.671,1.75011887]
[1771626418131,23.4055832,84.71,84.671,1.75011887]
[1771626418132,1.83371228,84.707,84.671,1.75011887]
[1771626418915,1.83371228,84.699,84.652,11.81306998]
[1771626419114,1.83371228,84.699,84.66,11.50049152]
[1771626419931,1.83371228,84.699,84.661,1.75407804]
[1771626420120,1.83371228,84.699,84.663,1.75407804]
[1771626421327,1.83371228,84.697,84.665,1.75602083]
[1771626421934,1.83371228,84.697,84.66,11.50049152]
[1771626422134,1.83371228,84.697,84.662,1.75796482]
[1771626422946,1.83371228,84.708,84.661,43.10121147]
[1771626423156,1.83371228,84.708,84.66,11.50049152]
[1771626423157,1.83371228,84.689,84.65,11.50049152]
[1771626423341,1.83371228,84.677,84.642,1.75986186]
[1771626423516,1.83371228,84.677,84.635,1.76175557]
[1771626423722,1.83371228,84.669,84.631,11.81600122]
[1771626423917,1.83371228,84.669,84.632,1.76175557]
[1771626424139,11.80944283,84.678,84.64,11.50049152]
[1771626424351,47.22363671,84.704,84.632,1.76175557]
[1771626424352,1.83371228,84.689,84.65,11.50049152]
[1771626424557,1.83371228,84.689,84.65,13.26411808]
[1771626425947,1.83371228,84.687,84.651,11.81320953]
[1771626426952,1.83371228,84.687,84.651,13.58055159]
[1771626427455,2.01628599,84.679,84.637,11.81516358]
[1771626427637,2.01628599,84.679,84.638,1.77271511]
[1771626428044,2.01628599,84.679,84.637,41.35307253]
[1771626428045,2.01628599,84.679,84.641,1.77271511]
[1771626428447,2.01628599,84.679,84.643,1.77271511]
[1771626429752,2.01628599,84.678,84.639,41.35209536]
[1771626430063,2.01628599,84.669,84.639,41.35209536]
[1771626430562,2.01628599,84.669,84.639,29.53721097]
[1771626436662,2.01628599,84.667,84.63,13.60239762]
[1771626437051,2.01628599,84.667,84.631,1.78625678]
[1771626438352,2.01628599,84.659,84.631,1.78625678]
[1771626439371,2.01628599,84.659,84.632,11.81586161]
[1771626440263,2.01628599,84.706,84.651,0.28432314]
[1771626440471,2.01628599,84.689,84.645,1.78985927]
[1771626440688,2.01628599,84.679,84.645,1.78985927]
[1771626441355,2.01628599,84.679,84.646,11.81390733]
[1771626442369,2.01628599,84.679,84.646,41.34867565]
[1771626442749,2.01628599,84.679,84.647,1.79335927]
[1771626443274,2.01628599,84.679,84.648,11.8136282]
[1771626443457,2.01628599,84.679,84.648,13.60698747]
[1771626444867,2.01628599,84.678,84.648,13.60698747]
[1771626446479,2.01628599,84.676,84.648,13.60698747]
[1771626446667,2.01628599,84.676,84.637,1.79778462]
[1771626446868,2.01628599,84.669,84.638,11.81502398]
[1771626449166,2.01628599,84.669,84.638,13.61495243]
[1771626452066,2.01628599,84.669,84.639,1.80308001]
[1771626454790,2.01628599,84.667,84.614,43.17043974]
[1771626454969,11.81083762,84.668,84.621,1.84009985]
[1771626455174,11.81083762,84.668,84.623,1.84009985]
[1771626455990,11.81083762,84.668,84.614,41.36431322]
[1771626455991,11.80930336,84.679,84.632,1.84009985]
[1771626456869,11.80930336,84.679,84.624,0.14216157]
[1771626456870,11.80930336,84.679,84.641,1.84009985]
[1771626457069,2.01628599,84.678,84.641,1.84009985]
[1771626458102,104.4,84.687,84.633,41.35502698]
[1771626458103,2.00454178,84.684,84.643,1.8663316]
[1771626459480,2.00454178,84.684,84.645,1.8663316]
[1771626461294,11.80790893,84.689,84.645,1.8663316]
[1771626461501,2.00454178,84.688,84.645,1.8663316]
[1771626462283,2.00454178,84.686,84.647,1.8663316]
[1771626463099,2.00454178,84.686,84.649,1.8663316]
[1771626463275,2.00454178,84.686,84.653,1.8663316]
[1771626464985,2.00454178,84.679,84.654,11.81279088]
[1771626466697,2.00454178,84.679,84.648,13.67988863]
[1771626466896,2.00454178,84.708,84.651,1.8663316]
[1771626467100,2.00454178,84.689,84.651,1.8663316]
[1771626470808,2.00454178,84.679,84.653,1.8663316]
[1771626472907,2.00454178,84.679,84.655,1.8663316]
[1771626477190,2.00454178,84.677,84.624,13.15182284]
[1771626477514,4.29264469,84.63,84.612,1.8663316]
[1771626477727,2.00454178,84.639,84.603,1.8663316]
[1771626478020,9.97152328,84.638,84.603,1.8663316]
[1771626478200,7.9669815,84.637,84.603,1.8663316]
[1771626478397,4.29264469,84.63,84.603,1.8663316]
[1771626478597,2.00454178,84.629,84.603,1.8663316]
[1771626479198,2.00454178,84.629,84.604,11.81977211]
[1771626479400,2.00454178,84.627,84.599,11.82045581]
[1771626479710,2.00454178,84.627,84.599,13.68678741]
[1771626479894,2.00454178,84.627,84.6,1.8663316]
[1771626480222,4.29264469,84.62,84.594,13.6874916]
[1771626480526,2.00454178,84.619,84.588,1.8663316]
[1771626480693,2.00454178,84.609,84.588,1.8663316]
[1771626481612,2.00454178,84.609,84.56,5.36086188]
[1771626481613,2.00454178,84.607,84.572,1.8663316]
[1771626482116,2.00454178,84.619,84.572,1.8663316]
[1771626482516,4.29264469,84.61,84.572,1.8663316]
[1771626482700,2.00454178,84.609,84.572,1.8663316]
[1771626483220,2.00454178,84.609,84.574,1.8663316]
[1771626484391,2.00454178,84.607,84.574,1.8663316]
[1771626485226,2.00454178,84.607,84.576,1.8663316]
[1771626486321,2.00454178,84.607,84.578,1.87480605]
[1771626487026,1.92913982,84.636,84.591,1.87480605]
[1771626487329,1.92913982,84.645,84.605,1.86959257]
[1771626487624,1.92913982,84.645,84.6,4.29264469]
[1771626487625,1.92913982,84.645,84.611,1.86959257]
[1771626491323,1.92913982,84.645,84.613,1.86959257]
[1771626491512,4.29264469,84.65,84.613,1.86959257]
[1771626491818,1.86987974,84.649,84.613,1.86959257]
[1771626493226,1.86987974,84.649,84.614,11.8183752]
[1771626493530,1.86987974,84.649,84.615,1.86959257]
[1771626493746,1.86987974,84.668,84.621,1.86959257]
[1771626494215,1.86987974,84.666,84.631,1.86959257]
[1771626495536,1.86987974,84.666,84.633,1.86959257]
[1771626497345,1.86987974,84.666,84.635,1.86959257]
[1771626499116,1.86987974,84.666,84.637,1.86959257]
[1771626501329,1.86987974,84.666,84.639,1.86959257]
[1771626503248,1.86987974,84.666,84.641,1.86959257]
[1771626504325,1.86987974,84.666,84.642,13.6840582]
[1771626504945,1.86987974,84.666,84.643,1.86959257]
[1771626506843,1.86987974,84.664,84.643,1.86959257]
[1771626507746,1.86987974,84.671,84.645,1.86959257]
[1771626509152,1.86987974,84.671,84.646,11.81390733]
[1771626509446,1.86987974,84.671,84.647,1.86959257]
[1771626510447,1.86987974,84.671,84.649,1.86959257]
[1771626511250,1.86987974,84.671,84.651,1.86959257]
[1771626511541,1.86987974,84.679,84.651,1.86959257]
[1771626513746,1.86987974,84.679,84.661,1.86959257]
[1771626514954,1.86987974,84.687,84.662,11.81167465]
[1771626515250,1.86987974,84.687,84.663,1.86959257]
[1771626524061,1.86987974,84.687,84.665,1.98632158]
[1771626527956,1.86617434,84.698,84.671,1.98632158]
[1771626528157,1.86617434,84.698,84.66,6.27788233]
[1771626528375,1.86617434,84.689,84.652,1.98632158]
[1771626529379,1.86617434,84.686,84.652,1.98632158]
[1771626530182,1.86617434,84.683,84.652,1.98632158]
[1771626530980,1.86617434,84.683,84.64,4.29156075]
[1771626530981,1.86617434,84.683,84.654,1.98632158]
[1771626531175,9.80107189,84.682,84.654,1.98632158]
[1771626531483,1.86617434,84.669,84.637,1.98632158]
[1771626531861,1.86617434,84.669,84.641,1.98632158]
[1771626532176,1.86617434,84.667,84.641,1.98632158]
[1771626532382,1.86617434,84.667,84.642,11.81446563]
[1771626532565,1.86617434,84.667,84.643,1.98632158]
[1771626533178,7.94289049,84.666,84.643,1.98632158]
[1771626533359,1.86617434,84.667,84.643,1.98632158]
[1771626533557,7.94289111,84.666,84.643,1.98632158]
[1771626533761,1.86617434,84.667,84.643,1.98632158]
[1771626533987,7.94289111,84.666,84.643,1.98632158]
[1771626534284,7.94550771,84.665,84.643,1.98632158]
[1771626534494,1.86617434,84.667,84.643,1.98632158]
[1771626534785,7.94550801,84.666,84.643,1.98632158]
[1771626534980,7.94550801,84.665,84.643,1.98632158]
[1771626535185,7.94844347,84.664,84.643,1.98632158]
[1771626535383,1.86617434,84.667,84.643,1.98632158]
[1771626535566,7.94844286,84.666,84.645,1.98632158]
[1771626535884,7.94844286,84.665,84.645,1.98632158]
[1771626536087,7.94844286,84.664,84.645,1.98632158]
[1771626536287,7.94844286,84.663,84.645,1.98632158]
[1771626536490,7.94844286,84.662,84.645,1.98632158]
[1771626536679,1.86617434,84.667,84.645,1.98632158]
[1771626536884,7.95178867,84.666,84.645,1.98632158]
[1771626537074,7.95178867,84.665,84.645,1.98632158]
[1771626537277,7.95178867,84.664,84.645,1.98632158]
[1771626537482,7.95178867,84.663,84.645,1.98632158]
[1771626537794,7.95178867,84.662,84.645,1.98632158]
[1771626537979,1.86617434,84.667,84.645,1.98632158]
[1771626538183,9.81952395,84.666,84.645,1.98632158]
[1771626538387,7.95334961,84.665,84.645,1.98632158]
[1771626538692,7.95334961,84.664,84.645,1.98632158]
[1771626538869,7.95334961,84.663,84.645,1.98632158]
[1771626539191,7.95334961,84.662,84.645,1.98632158]
[1771626539490,11.81066658,84.67,84.645,1.98632158]
[1771626539491,7.95334961,84.661,84.645,1.98632158]
[1771626539691,7.95334961,84.66,84.645,1.98632158]
[1771626539991,1.86617434,84.668,84.647,1.98632158]
[1771626540289,7.9557072,84.667,84.647,1.98632158]
[1771626540590,7.9557072,84.666,84.647,1.98632158]
[1771626540896,1.86617434,84.668,84.647,1.98632158]
[1771626541065,7.95570843,84.667,84.647,1.98632158]
[1771626541267,7.95608362,84.666,84.647,1.98632158]
[1771626541470,7.95608455,84.665,84.647,1.98632158]
[1771626541677,1.86617434,84.668,84.647,1.98632158]
[1771626541886,1.86617434,84.666,84.647,1.98632158]
[1771626542197,7.95608394,84.665,84.649,1.98632158]
[1771626542377,11.81000866,84.674,84.649,1.98632158]
[1771626542572,7.95647745,84.673,84.649,1.98632158]
[1771626542779,7.95647745,84.672,84.649,1.98632158]
[1771626542974,1.86617434,84.703,84.661,1.98632158]
[1771626543187,1.86617434,84.703,84.671,1.98632158]
[1771626544976,1.86617434,84.702,84.673,1.98632158]
[1771626546892,1.86617434,84.689,84.661,11.81181417]
[1771626547092,1.86617434,84.688,84.661,11.81181417]
[1771626547796,1.93610782,84.669,84.641,11.81460521]
[1771626548394,1.93610782,84.659,84.634,2.03446048]
[1771626549886,1.93610782,84.659,84.626,2.03446048]
[1771626550292,1.93610782,84.657,84.626,2.03446048]
[1771626550495,1.93610782,84.649,84.621,11.81739757]
[1771626550881,1.93610782,84.649,84.622,2.03446048]
[1771626551599,1.93610782,84.649,84.621,11.81739757]
[1771626552095,1.93610782,84.648,84.617,11.8179562]
[1771626552299,1.93610782,84.639,84.617,11.8179562]
[1771626555198,1.93610782,84.638,84.603,2.03446048]
[1771626555903,11.81490426,84.639,84.606,11.81942253]
[1771626555904,1.93610782,84.629,84.606,11.81942253]
[1771626556806,4.29156075,84.63,84.604,11.81977211]
[1771626556807,1.93610782,84.628,84.604,11.81977211]
[1771626558405,1.93610782,84.628,84.604,2.03446048]
[1771626560605,1.93610782,84.628,84.605,11.8196324]
[1771626563793,1.93610782,84.628,84.606,2.03446048]
[1771626573999,4.29566753,84.65,84.611,2.03446048]
[1771626574324,11.81251181,84.656,84.621,2.03446048]
[1771626574820,41.34379134,84.656,84.621,2.03446048]
[1771626575595,11.81251181,84.656,84.621,2.03446048]
[1771626576122,1.93610782,84.653,84.623,2.03446048]
[1771626578416,1.85668839,84.661,84.631,1.83888394]
[1771626579597,1.85668839,84.661,84.633,1.83888394]
[1771626582007,1.85668839,84.659,84.635,1.83888394]
[1771626585912,1.85668839,84.659,84.637,1.83888394]
[1771626589313,1.85668839,84.649,84.61,1.83888394]
[1771626589568,4.29566753,84.63,84.61,1.83888394]
[1771626589717,1.85668839,84.631,84.61,1.83888394]
[1771626591525,1.85668839,84.631,84.612,1.83888394]
[1771626595328,1.85668839,84.631,84.614,1.83888394]
[1771626596428,1.85668839,84.629,84.609,1.83888394]
[1771626598423,11.81592006,84.632,84.609,1.83888394]
[1771626600641,1.85668839,84.649,84.62,4.29566753]
[1771626600821,1.85668839,84.648,84.621,1.83888394]
[1771626602517,1.85668839,84.648,84.616,1.83888394]
[1771626603348,1.85668839,84.646,84.618,1.83888394]
[1771626605244,11.8140469,84.645,84.618,1.83888394]
[1771626605432,11.8140469,84.645,84.585,62.2]
[1771626605433,1.85668839,84.629,84.591,0.28432314]
[1771626605621,1.85668839,84.619,84.581,11.82296683]
[1771626605822,1.85668839,84.609,84.561,17.18664445]
[1771626606022,1.85668839,84.609,84.568,29.56195233]
[1771626606318,1.85668839,84.599,84.561,11.82578257]
[1771626607439,1.90077661,84.597,84.564,1.92131895]
[1771626607626,1.93494005,84.594,84.564,1.92131895]
[1771626607835,1.93494005,84.589,84.558,1.84635425]
[1771626608231,31.93494005,84.595,84.57,4.29566753]
[1771626608435,30.0,84.595,84.571,1.84635425]
[1771626608828,1.93494005,84.601,84.571,1.84635425]
[1771626609327,11.82033096,84.6,84.571,1.84635425]
[1771626609526,1.93494005,84.599,84.571,1.84635425]
[1771626609728,1.93494005,84.599,84.573,1.84635425]
[1771626610342,1.93494005,84.597,84.573,1.84635425]
[1771626610539,1.93494005,84.597,84.561,11.82578257]
[1771626610847,11.82061041,84.598,84.55,4.49566753]
[1771626610848,1.93494005,84.579,84.552,1.84635425]
[1771626611425,4.29566753,84.57,84.55,0.2]
[1771626611625,1.93494005,84.569,84.55,0.2]
[1771626611826,1.93494005,84.569,84.54,0.2]
[1771626611827,1.93494005,84.559,84.54,0.2]
[1771626612536,1.93494005,84.549,84.53,0.2]
[1771626612735,1.93494005,84.555,84.53,2.04635425]
[1771626613127,1.93494005,84.549,84.53,0.2]
[1771626613331,1.93494005,84.549,84.52,0.2]
[1771626613545,1.93494005,84.529,84.501,1.84635425]
[1771626613723,1.93494005,84.549,84.511,1.84635425]
[1771626613927,1.93494005,84.549,84.5,41.62006608]
[1771626613928,4.29566753,84.53,84.5,2.04635425]
[1771626614143,1.93494005,84.529,84.5,2.04635425]
[1771626614942,1.93494005,84.529,84.5,0.2]
[1771626615123,1.93494005,84.529,84.501,11.83417947]
[1771626615450,1.93494005,84.529,84.502,1.84635425]
[1771626616224,1.93494005,84.529,84.503,11.83389938]
[1771626616551,1.93494005,84.537,84.504,1.84635425]
[1771626616851,1.93494005,84.549,84.511,1.84635425]
[1771626617530,1.93494005,84.545,84.513,1.84635425]
[1771626620143,1.93494005,84.545,84.515,1.84635425]
[1771626621963,1.93494005,84.579,84.541,1.84635425]
[1771626622131,1.93494005,84.569,84.541,1.84635425]
[1771626622444,1.93494005,84.569,84.534,1.84635425]
[1771626623134,1.93494005,84.579,84.541,1.84635425]
[1771626623957,1.93494005,84.577,84.543,1.84635425]
[1771626624155,1.93494005,84.577,84.551,1.84635425]
[1771626627359,1.93494005,84.577,84.552,11.82704134]
[1771626627672,1.93494005,84.577,84.553,1.84635425]
[1771626629346,1.93494005,84.577,84.554,11.82676159]
[1771626629549,1.93494005,84.589,84.555,1.84635425]
[1771626630568,1.93494005,84.589,84.557,1.84635425]
[1771626631469,1.93494005,84.589,84.561,1.84635425]
[1771626631682,1.93494005,84.605,84.57,4.30405677]
[1771626631849,1.93494005,84.605,84.571,1.84635425]
[1771626634864,1.93494005,84.603,84.573,1.84635425]
[1771626638275,2.02175189,84.601,84.575,1.89112773]
[1771626641077,11.81907362,84.609,84.577,1.89112773]
[1771626641580,2.02175189,84.608,84.577,1.89112773]
[1771626645676,2.02175189,84.606,84.577,1.89112773]
[1771626646075,2.02175189,84.589,84.561,11.82569013]
[1771626646381,2.02175189,84.589,84.555,1.89112773]
[1771626646885,2.02175189,84.579,84.555,1.89112773]
[1771626647463,2.02175189,84.579,84.556,11.82648185]
[1771626648084,4.30405677,84.6,84.542,11.8284403]
[1771626648085,2.02175189,84.569,84.542,11.8284403]
[1771626648568,2.02175189,84.569,84.541,1.89112773]
[1771626650179,2.02175189,84.567,84.541,1.89112773]
[1771626650381,2.02175189,84.567,84.533,1.89112773]
[1771626651171,2.02175189,84.559,84.533,1.89112773]
[1771626653469,2.02175189,84.559,84.534,11.8295597]
[1771626654289,2.02175189,84.559,84.534,13.72068743]
[1771626654472,11.82320447,84.58,84.551,1.89112773]
[1771626654678,2.02175189,84.581,84.551,1.89112773]
[1771626655476,2.02175189,84.581,84.552,11.82704134]
[1771626655671,2.02175189,84.581,84.553,1.89112773]
[1771626657473,2.02175189,84.589,84.561,1.89112773]
[1771626657673,2.02175189,84.589,84.563,1.89112773]
[1771626659189,2.02175189,84.579,84.543,1.89112773]
[1771626660291,2.02175189,84.577,84.544,1.89112773]
[1771626660894,2.02175189,84.577,84.539,13.7199169]
[1771626661192,2.02175189,84.577,84.54,1.89112773]
[1771626661404,2.02175189,84.569,84.54,1.89112773]
[1771626662789,2.02175189,84.569,84.542,1.89112773]
[1771626662981,2.02175189,84.583,84.551,1.89112773]
[1771626663177,11.82295955,84.582,84.561,1.89112773]
[1771626663790,11.82236343,84.586,84.561,1.89112773]
[1771626663993,3.69383402,84.612,84.561,1.89112773]
[1771626663994,11.82141976,84.593,84.561,1.89112773]
[1771626664876,2.02175189,84.592,84.562,11.82564272]
[1771626665076,2.02175189,84.592,84.563,1.89112773]
[1771626668495,2.02175189,84.592,84.565,1.95459543]
[1771626669077,13.84332365,84.592,84.565,1.95459543]
[1771626670998,13.84332365,84.592,84.567,1.95459543]
[1771626671789,1.89109364,84.591,84.567,1.95459543]
[1771626675602,11.82157176,84.592,84.569,1.95459543]
[1771626677605,1.89109364,84.591,84.569,1.95459543]
[1771626678111,1.89109364,84.591,84.57,1.95459543]
[1771626678285,1.89109364,84.6,84.571,1.95459543]
[1771626678977,29.54530213,84.616,84.571,1.95459543]
[1771626679187,1.89109364,84.631,84.61,6.2586522]
[1771626679395,1.89109364,84.631,84.61,1.95459543]
[1771626679595,1.89109364,84.658,84.611,1.95459543]
[1771626679807,1.89109364,84.657,84.621,1.95459543]
[1771626680710,1.89109364,84.657,84.631,1.95459543]
[1771626680888,1.89109364,84.669,84.631,1.95459543]
[1771626681405,1.89109364,84.667,84.633,1.95459543]
[1771626681587,1.89109364,84.672,84.641,1.95459543]
[1771626682103,1.89109364,84.67,84.641,1.95459543]
[1771626683408,11.80978776,84.676,84.651,1.95459543]
[1771626683606,1.89109364,84.675,84.651,1.95459543]
[1771626684013,1.89109364,84.674,84.651,1.95459543]
[1771626687198,1.89109364,84.672,84.651,1.95459543]
[1771626689917,1.89109364,84.678,84.651,1.95459543]
[1771626690113,1.89109364,84.684,84.651,1.95459543]
[1771626690310,1.89109364,84.698,84.661,1.95459543]
[1771626691095,1.89109364,84.679,84.639,1.95459543]
[1771626691302,1.89109364,84.679,84.641,1.95459543]
[1771626692110,1.89109364,84.677,84.642,11.81446563]
[1771626693023,1.89109364,84.683,84.65,4.29046263]
[1771626693611,1.89109364,84.683,84.642,41.3506297]
[1771626694014,1.89109364,84.683,84.609,1.18190736]
[1771626694015,4.29046263,84.67,84.609,1.18190736]
[1771626694226,1.89109364,84.659,84.621,2.096757]
[1771626694403,1.89109364,84.659,84.621,1.95459543]
[1771626695605,4.29046263,84.65,84.621,1.95459543]
[1771626695810,1.89109364,84.649,84.621,1.95459543]
[1771626696423,1.89109364,84.647,84.621,13.77190827]
[1771626697129,1.89109364,84.647,84.622,1.95459543]
[1771626697926,1.89109364,84.647,84.623,11.81711827]
[1771626698131,1.89109364,84.647,84.623,13.72890782]
[1771626698826,1.89109364,84.647,84.623,11.81711827]
[1771626699007,1.89109364,84.647,84.624,1.91178955]
[1771626701121,1.89109364,84.647,84.626,1.91178955]
[1771626704539,1.89109364,84.647,84.603,1.91178955]
[1771626704540,2.07345798,84.639,84.603,1.91178955]
[1771626705525,2.07345798,84.637,84.605,1.91178955]
[1771626707938,2.07345798,84.635,84.605,1.91178955]
[1771626709621,11.81558239,84.634,84.605,1.91178955]
[1771626709825,2.07345798,84.633,84.605,1.91178955]
[1771626710939,11.81586161,84.632,84.605,1.91178955]
[1771626711139,2.07345798,84.631,84.605,1.91178955]
[1771626712121,2.07345798,84.631,84.604,11.81977211]
[1771626712122,2.07345798,84.639,84.607,1.91178955]
[1771626716838,2.07345798,84.646,84.621,1.91178955]
[1771626717027,4.29046263,84.66,84.621,1.91178955]
[1771626717028,2.07345798,84.651,84.621,1.91178955]
[1771626717843,2.07345798,84.649,84.621,1.91178955]
[1771626719738,2.07345798,84.649,84.623,1.91178955]
[1771626723333,2.07345798,84.649,84.625,1.91178955]
[1771626732954,2.05849901,84.639,84.6,1.99994971]
[1771626733748,2.05849901,84.647,84.611,1.99994971]
[1771626734667,2.05849901,84.647,84.621,1.99994971]
[1771626735359,2.05849901,84.647,84.623,1.99994971]
[1771626736546,2.05849901,84.646,84.623,1.99994971]
[1771626738762,2.05849901,84.646,84.625,1.99994971]
[1771626740966,2.05849901,84.651,84.627,1.99994971]
[1771626741172,2.05849901,84.656,84.627,1.99994971]
[1771626741374,2.05849901,84.661,84.627,1.99994971]
[1771626742769,2.05849901,84.679,84.641,1.99994971]
[1771626743571,2.05849901,84.678,84.641,1.99994971]
[1771626743960,2.05849901,84.678,84.651,1.99994971]
[1771626744678,2.05849901,84.678,84.653,1.99994971]
[1771626746775,2.05849901,84.678,84.655,1.99994971]
[1771626748172,11.80879706,84.683,84.655,1.99994971]
[1771626748173,13.86729607,84.683,84.655,1.99994971]
[1771626748757,13.86729607,84.683,84.661,1.99994971]
[1771626749875,2.05849901,84.69,84.661,1.99994971]
[1771626752972,11.80790893,84.689,84.661,1.99994971]
[1771626753169,2.05849901,84.688,84.661,1.99994971]
[1771626753368,2.05849901,84.688,84.663,1.99994971]
[1771626758182,11.80818779,84.687,84.663,1.99994971]
[1771626758373,1.9399064,84.686,84.663,1.99994971]
[1771626761363,0.1,84.7,84.681,2.01953943]
[1771626761882,2.0399064,84.7,84.681,2.01953943]
[1771626762776,1.9399064,84.699,84.66,4.29245718]
[1771626763587,1.9399064,84.698,84.66,4.29245718]
[1771626763998,1.9399064,84.698,84.651,0.28432314]
[1771626764462,1.9399064,84.696,84.652,41.34574493]
[1771626764667,11.80679362,84.697,84.661,1.85159362]
[1771626764867,1.9399064,84.707,84.682,1.85159362]
[1771626765267,1.9399064,84.707,84.67,4.29245718]
[1771626765472,2.07181027,84.705,84.661,0.28432314]
[1771626765886,2.07181027,84.705,84.67,4.29245718]
[1771626766889,2.07181027,84.709,84.68,4.29245718]
[1771626767072,2.07181027,84.708,84.671,41.33646702]
[1771626768487,0.1,84.71,84.68,4.29245718]
[1771626769096,2.17181027,84.71,84.681,11.80902445]
[1771626769594,2.07181027,84.746,84.7,4.29245718]
[1771626769795,2.07181027,84.746,84.682,17.02493324]
[1771626770103,2.07181027,84.746,84.73,4.29245718]
[1771626770302,0.1,84.75,84.74,4.29245718]
[1771626770973,0.1,84.76,84.74,4.29245718]
[1771626771192,2.17181027,84.76,84.74,4.29245718]
[1771626771376,2.17181027,84.76,84.706,41.31938704]
[1771626771575,2.07181027,84.759,84.711,0.28432314]
[1771626771768,2.07181027,84.759,84.72,4.29245718]
[1771626771970,2.07181027,84.758,84.73,4.29245718]
[1771626772793,2.07181027,84.758,84.706,41.31938704]
[1771626772794,2.07181027,84.758,84.72,4.29245718]
[1771626773171,2.07181027,84.756,84.706,11.80553915]
[1771626773490,2.07181027,84.719,84.682,11.80882435]
[1771626773687,2.07181027,84.719,84.69,4.29245718]
[1771626773894,2.07181027,84.739,84.7,4.29245718]
[1771626774276,2.07181027,84.739,84.69,4.29245718]
[1771626775679,2.07181027,84.737,84.692,0.02134176]
[1771626776577,2.07181027,84.729,84.691,11.80763009]
[1771626777093,2.07181027,84.727,84.69,4.29245718]
[1771626777273,2.07181027,84.727,84.691,0.02316042]
[1771626778989,2.07181027,84.727,84.691,11.83079051]
[1771626779983,2.07181027,84.727,84.691,41.34986573]
[1771626780778,2.07181027,84.726,84.691,41.34986573]
[1771626780977,2.07181027,84.726,84.692,0.03028626]
[1771626781180,2.07181027,84.726,84.701,0.03028626]
[1771626782193,2.07181027,84.726,84.693,0.03198739]
[1771626786298,2.07181027,84.735,84.711,0.03862461]
[1771626786793,2.07181027,84.741,84.711,0.03862461]
[1771626787299,2.07181027,84.741,84.712,0.04340898]
[1771626790091,2.07181027,84.741,84.72,4.29245718]
[1771626790401,2.07181027,84.756,84.721,0.04800985]
[1771626791391,2.07181027,84.756,84.73,4.34196265]
[1771626791701,0.1,84.76,84.706,11.80548218]
[1771626791702,2.07181027,84.739,84.706,11.80548218]
[1771626792084,2.07181027,84.739,84.693,11.80735125]
[1771626792603,2.07181027,84.739,84.694,0.05096881]
[1771626793105,2.07181027,84.739,84.7,4.29245718]
[1771626793283,2.07181027,84.737,84.694,0.05096881]
[1771626793584,2.07181027,84.729,84.682,0.05241757]
[1771626793784,41.30378341,84.738,84.681,11.80902445]
[1771626793785,2.07181027,84.719,84.681,11.80902445]
[1771626793980,2.07181027,84.719,84.681,41.33158559]
[1771626795778,2.07181027,84.719,84.69,4.29245718]
[1771626796103,2.07181027,84.719,84.691,0.05428715]
[1771626798106,2.07181027,84.719,84.691,11.86191724]
[1771626800007,2.07181027,84.719,84.691,11.80763009]
[1771626802001,2.07181027,84.719,84.69,4.28556221]
[1771626802609,2.07181027,84.719,84.69,4.34329463]
[1771626802807,2.07181027,84.719,84.691,0.05827815]
[1771626808114,2.07181027,84.719,84.691,11.86590824]
[1771626809307,2.07181027,84.719,84.692,0.06148122]
[1771626813223,2.07181027,84.719,84.691,41.32670531]
[1771626813408,2.07181027,84.719,84.692,0.063476]
[1771626817832,2.07181027,84.717,84.681,11.80902445]
[1771626818018,2.07181027,84.709,84.672,11.81027966]
[1771626818632,2.07181027,84.709,84.673,0.06629696]
[1771626827234,2.07181027,84.717,84.681,0.07071222]
[1771626827428,2.07181027,84.717,84.682,0.07071222]
[1771626827735,29.49665669,84.756,84.711,2.10420113]
[1771626827917,4.28556221,84.75,84.711,2.10420113]
[1771626829628,2.02388707,84.759,84.721,2.10420113]
[1771626830631,2.02388707,84.758,84.721,2.10420113]
[1771626832140,2.02388707,84.756,84.723,2.10420113]
[1771626832834,29.49133404,84.771,84.722,11.80330964]
[1771626832835,2.02388707,84.789,84.724,2.10420113]
[1771626833039,11.78842141,84.829,84.771,2.10420113]
[1771626833217,4.28556221,84.81,84.771,2.10420113]
[1771626833931,4.28556221,84.82,84.771,2.10420113]
[1771626834341,11.78981124,84.819,84.773,2.10420113]
[1771626835023,2.02388707,84.818,84.773,2.10420113]
[1771626839625,2.02388707,84.816,84.775,2.10420113]
[1771626840939,2.02388707,84.809,84.769,2.10420113]
[1771626841352,2.02388707,84.809,84.77,2.10420113]
[1771626841840,2.02388707,84.807,84.772,2.10420113]
[1771626842248,1e-08,84.83,84.801,2.10420113]
[1771626842443,0.1,84.84,84.821,2.10420113]
[1771626842643,2.02388707,84.839,84.813,2.10420113]
[1771626843055,0.1,84.84,84.813,2.10420113]
[1771626843349,2.02388707,84.839,84.813,2.10420113]
[1771626843528,0.1,84.84,84.813,2.10420113]
[1771626844051,0.1,84.84,84.81,4.28556221]